Cogmind - Beta 17 @@@ ROGUE MODE // 2026.06.27 @ 12:39:22 Player: goobie Result: Destroyed by G-47 Trooper with Particle Gun Performance ------------- Evolutions (2) 1000 Regions Visited (3) 600 Robots Destroyed (43) 215 Value Destroyed (1007) 1007 Prototype IDs (0) 0 Alien Tech Used (0) 0 Bonus (0) 0 TOTAL SCORE: 2822 Bonus ------- None Cogmind --------- Core Integrity 0/550 Matter 276/300 Energy 100/100 System Corruption 0% Temperature Cool (9) Movement Core (350) Ox6 Location -8/Materials Parts ------- > --- POWER (2) -------- (None) > --- PROPULSION (2) --- (None) > --- UTILITY (4) ------ Large Storage Unit > --- WEAPON (3) ------- (None) > --- INVENTORY (15) --- Medium Storage Unit Pulse Rifle Heavy Particle Gun Autogun Grenade Launcher Datajack Peak State ------------ > --- POWER ------------ Light Ion Engine Light Nuclear Core > --- PROPULSION ------- Aluminum Leg Aluminum Leg > --- UTILITY ---------- Heat Sink Cooling System Large Storage Unit Sensor Array > --- WEAPON ----------- Light EM Pulse Cannon Autogun Autogun > --- INVENTORY -------- Compact Wheel Compact Wheel Medium Storage Unit Particle Gun Pulse Rifle Pulse Rifle Autogun Grenade Launcher Datajack [Rating: 18] Favorites ----------- Power Light Ion Engine Engine Light Ion Engine Power Core Light Nuclear Core Propulsion Light Treads Treads Light Treads Leg Aluminum Leg Wheel Compact Wheel Utility Large Storage Unit Device Seismic Detector Storage Large Storage Unit Weapon Autogun Energy Gun EM Pulse Gun Energy Cannon Light EM Pulse Cannon Ballistic Gun Autogun Ballistic Cannon Light Cannon Launcher Grenade Launcher Build | -11 -10 -9 -8 ------- Run | Yrd Mat Mat Mat Slots Evolved 4 | . . 2 2 Power 1 | . . . 1 Propulsion . | . . . . Utility 2 | . . 1 1 Weapon 1 | . . 1 . Parts Attached 29 | 7 5 8 9 Power 4 | 1 . 1 2 Engine 3 | 1 . 1 1 Core 1 | . . . 1 Reactor . | . . . . Propulsion 6 | 2 . . 4 Treads 2 | 2 . . . Leg 2 | . . . 2 Wheel 2 | . . . 2 Hover . | . . . . Flight . | . . . . Utility 8 | 1 4 2 1 Device 4 | . 1 2 1 Storage 4 | 1 3 . . Processor . | . . . . Hackware . | . . . . Protection . | . . . . Artifact . | . . . . Weapon 11 | 3 1 5 2 Energy Gun 5 | 2 1 . 2 Energy Cannon 1 | . . 1 . Ballistic Gun 3 | 1 . 2 . Ballistic Cannon 1 | . . 1 . Launcher 1 | . . 1 . Special Weapon . | . . . . Impact Weapon . | . . . . Slashing Weapon . | . . . . Piercing Weapon . | . . . . Special Melee Weapon . | . . . . Unidentified Prototypes . | . . . . Parts Lost 19 | . . 2 17 Power 4 | . . 1 3 Propulsion 5 | . . . 5 Utility 4 | . . . 4 Weapon 6 | . . 1 5 Highest Loss Streak 14 | . . 1 14 To Critical Strikes . | . . . . Average Backups 8 | 4 9 8 10 Power . | . 1 . . Propulsion 3 | 2 4 4 2 Utility 1 | . 1 1 1 Weapon 2 | 1 1 1 4 Tool/Special . | . . . . Unused Backups 4 | . . . 4 Power . | . . . . Propulsion . | . . . . Utility . | . . . . Weapon 3 | . . . 3 Tool/Special 1 | . . . 1 Average Slot Usage (%) 96 | . 99 99 91 Engine 12 | . 14 10 12 Core 1 | . . . 3 Treads 19 | . 28 22 8 Leg 2 | . . . 6 Device 20 | . 11 21 24 Storage 11 | . 15 11 9 Energy Gun 6 | . 14 8 . Energy Cannon 3 | . . 1 8 Ballistic Gun 13 | . 14 11 16 Ballistic Cannon 4 | . . 10 . Peak Build Rating 18 | 6 8 14 18 Average Rating 10 | 5 7 9 15 On Entrance 7 | . 6 8 14 Avg Prop Armor Cover (%) . | . . . . Naked Turns . | . . . . Heaviest Build 42 | 12 37 36 42 Greatest Support 40 | 40 40 40 40 Greatest Overweight (x) 9 | . . . 9 Average Overweight (x) . | . . . . Largest Inventory Capacity 15 | 8 15 15 15 Average Capacity 14 | 7 14 15 15 Most Carried 12 | 6 12 12 12 Average Carried 8 | 4 9 8 10 Final Capacity 15 | 8 15 15 15 Final Carried 11 | 6 10 11 6 Class Distribution -------------------- 59% | Gunner 27% | Mutant 13% | Skirmisher Dominant Class ---------------- Mutant | -10/Materials Gunner | -9/Materials Skirmisher | -8/Materials Resources | -11 -10 -9 -8 ----------- Run | Yrd Mat Mat Mat Matter Collected 922 | 188 104 358 272 Remotely . | . . . . Salvage Created 1289 | . 149 476 664 Parts 87 | . 10 41 36 Haulers Intercepted . | . . . . Recyclers Shooed 2 | . . 2 . Parts Field Recycled . | . . . . Retrieved Matter . | . . . . Parts Self-Destructed . | . . . . Prevented . | . . . . Parts Restored . | . . . . Kills | -11 -10 -9 -8 ------- Run | Yrd Mat Mat Mat Combat Hostiles Destroyed 30 | . 4 16 10 Guns 18 | . 4 6 8 Cannons 8 | . . 6 2 AOE 3 | . . 3 . Classes Destroyed 7 | . 3 3 1 Worker 2 | . . 1 1 Builder 4 | . . 2 2 Recycler 3 | . . 2 1 Watcher 4 | . 2 2 . Swarmer 12 | . 3 9 . Grunt 17 | . 1 7 9 Sentry 1 | . . . 1 Best Kill Streak 7 | . 4 6 7 Combat Bots Only 5 | . 4 5 4 Max Kills in Single Turn 4 | . 2 4 2 Gunslinging 1 | . 1 . . Exploded 1 | . . 1 . Melee . | . . . . Uniques/NPCs Destroyed . | . . . . Combat | -11 -10 -9 -8 -------- Run | Yrd Mat Mat Mat Hostile Shots Fired 214 | . 18 80 116 Missed 63 | . 5 30 28 Hits 151 | . 13 50 88 Projectile 151 | . 13 50 88 Critical Strikes 6 | . . . 6 Damage Taken 2418 | . 111 541 1766 Core 688 | . 26 95 567 Absorbed by Shields . | . . . . Core Remaining (%) 88 | 100 89 76 . Volleys Fired 75 | . 15 27 33 Largest 3 | . 2 3 3 Hottest 151 | . 70 102 151 Shots Fired 184 | . 30 75 79 Gun 138 | . 30 43 65 Cannon 41 | . . 27 14 Launcher 5 | . . 5 . Special . | . . . . Kinetic 126 | . 15 54 57 Thermal 23 | . 15 . 8 Explosive 5 | . . 5 . Electromagnetic 30 | . . 16 14 Robot Hit Streak 16 | . 3 12 16 Robot Miss Streak 5 | . 5 4 3 Penetration Max . | . . . . Secondary Targets 3 | . 1 . 2 Max Gunslinging Chain 1 | . 1 . 1 Shots Hit Robots 107 | . 10 37 60 Core Hits 67 | . 7 34 26 Critical Kills . | . . . . Critical Parts Destroyed . | . . . . Critical Strikes . | . . . . Melee Attacks . | . . . . Impact . | . . . . Slashing . | . . . . Piercing . | . . . . Sneak Attacks . | . . . . Combat Hostiles . | . . . . Follow-up Attacks . | . . . . Damage Inflicted 2079 | . 106 929 1044 Guns 1110 | . 106 257 747 Cannons 622 | . . 325 297 Explosions 347 | . . 347 . Melee . | . . . . Ramming . | . . . . Kinetic 1169 | . 57 477 635 Thermal 203 | . 49 42 112 Explosive 305 | . . 305 . Electromagnetic 402 | . . 105 297 Impact . | . . . . Slashing . | . . . . Piercing . | . . . . Highest Corruption 3 | . 3 . . Average Corruption 2 | . 2 . . Corruption Purged . | . . . . Corruption Blocked . | . . . . Effects 1 | . 1 . . Matter Fused 1 | . 1 . . Overload Shots . | . . . . Overflow Damage 2 | . . 2 . Projectiles . | . . . . Explosions 2 | . . 2 . Melee . | . . . . Knockbacks 5 | . . 5 . Impact . | . . . . Kinetic 4 | . . 4 . Secondary 1 | . . 1 . Self-Inflicted Damage 78 | . . 78 . Shots 3 | . . 3 . Rammed . | . . . . Targets Rammed . | . . . . Kicked . | . . . . Crushed . | . . . . Highest Temperature 198 | . 57 12 198 Average Temperature 39 | . 20 4 72 Received Heat Transfer 870 | . 18 123 729 Siege Activations . | . . . . Martial Activations . | . . . . Shielding Activations . | . . . . Robots Disrupted . | . . . . Combat Hostiles . | . . . . Robots Corrupted 1 | . . 1 . Combat Hostiles 1 | . . 1 . Parts Fried 1 | . . 1 . Impact Corruptions 1 | . . 1 . Robots Melted . | . . . . Combat Hostiles . | . . . . Parts Melted 1 | . 1 . . Heat Transferred 407 | . 148 . 259 Parts Sabotaged . | . . . . Parts Stolen . | . . . . Parts Stripped . | . . . . Power Chain Reactions 1 | . . 1 . Alert | -11 -10 -9 -8 ------- Run | Yrd Mat Mat Mat Maximum Alert Level 1 | . . 1 . Low Security (%) 95 | 100 100 90 100 Level 1 4 | . . 9 . Level 2 . | . . . . Level 3 . | . . . . Level 4 . | . . . . Level 5 . | . . . . High Security . | . . . . Max Security . | . . . . Peak Influence 219 | . 82 219 129 Initial 85 | . . 16 85 Average 48 | . 14 68 46 Influence Increases 940 | . 115 518 307 Destroy 0b10 Robot/C 600 | . 80 320 200 Destroy 0b10 Robot/NC 65 | . 10 35 20 Destroy Leader 108 | . 14 64 30 Successful Hack 41 | . 11 21 9 Disable Machine 45 | . . 45 . Destroy Structure 36 | . . 33 3 Lose Combat Pursuer 45 | . . . 45 Influence Decreases 940 | . 74 357 509 Entered New Map 142 | . . 25 117 Time Decay 660 | . 74 312 274 Lost Part 138 | . . 20 118 Squads Dispatched 6 | . . 2 4 Investigation 2 | . . . 2 Extermination . | . . . . Reinforcement 4 | . . 2 2 Assault . | . . . . Garrison . | . . . . Intercept . | . . . . Searches Triggered . | . . . . Construction Impeded . | . . . . Haulers Reinforced . | . . . . Active Scanning Responses . | . . . . Cargo Convoy Interrupts . | . . . . Stealth | -11 -10 -9 -8 --------- Run | Yrd Mat Mat Mat Distress Signals 3 | . 1 1 1 Communications Jammed . | . . . . Distress Signals . | . . . . Times Spotted 52 | . 9 21 22 Peak Tracking Total 6 | . 5 5 6 Tactical Retreats 2 | . . . 2 Traps | -11 -10 -9 -8 ------- Run | Yrd Mat Mat Mat Traps Triggered 4 | . 2 . 2 Indirectly . | . . . . Trap Hack Attempts . | . . . . Triggered . | . . . . Disarmed 4 | . 4 . . Reprogrammed . | . . . . Reused . | . . . . Traps Extracted . | . . . . Installed . | . . . . Triggered . | . . . . Machines | -11 -10 -9 -8 ---------- Run | Yrd Mat Mat Mat Machines Disabled 3 | . . 3 . Max in Single Turn 2 | . . 2 . Machines Repaired . | . . . . Machines Dismantled . | . . . . Machines Sabotaged . | . . . . Overloaded Fab Kills . | . . . . Hacking | -11 -10 -9 -8 --------- Run | Yrd Mat Mat Mat Machines Accessed 8 | . 2 2 4 Terminals 7 | . 2 2 3 Fabricators . | . . . . Repair Stations . | . . . . Recycling Units 1 | . . . 1 Scanalyzers . | . . . . Garrison Access . | . . . . Total Hacks 33 | . 7 10 16 Successful 21 | . 6 5 10 Failed 12 | . 1 5 6 Catastrophic . | . . . . Database Lockouts . | . . . . Manual . | . . . . Terminals 29 | . 7 10 12 Fabricators . | . . . . Repair Stations . | . . . . Recycling Units 4 | . . . 4 Scanalyzers . | . . . . Garrison Access . | . . . . Terminal Hacks 18 | . 6 5 7 Record 2 | . 2 . . Emergency Access Points 2 | . . 1 1 Alert Level 4 | . 1 . 3 Locate Traps 3 | . 1 1 1 Disarm Traps 1 | . 1 . . Maintenance Status 1 | . . 1 . Assault Status 1 | . 1 . . Recall Investigation 1 | . . . 1 Zone Layout 3 | . . 2 1 Fabricator Hacks . | . . . . Repair Station Hacks . | . . . . Recycling Unit Hacks 3 | . . . 3 Process 1 | . . . 1 Report Inventory 1 | . . . 1 Retrieve Matter 1 | . . . 1 Scanalyzer . | . . . . Garrison Access Hacks . | . . . . Unauthorized Hacks . | . . . . Terminals . | . . . . Fabricators . | . . . . Repair Stations . | . . . . Recycling Units . | . . . . Scanalyzers . | . . . . Garrison Access . | . . . . Data Cores Recovered . | . . . . Used . | . . . . Hacking Detections 5 | . 1 1 3 Full Trace Events 2 | . 1 . 1 Feedback Events . | . . . . Feedback Blocked . | . . . . Robot Schematics Acquired . | . . . . Robots Built . | . . . . Authchips . | . . . . Time . | . . . . Total Robot Build Rating . | . . . . Part Schematics Acquired . | . . . . Parts Built . | . . . . Authchips . | . . . . Time . | . . . . Total Part Build Rating . | . . . . Part Studies Acquired . | . . . . Parts Repaired . | . . . . Time . | . . . . Parts Recycled . | . . . . Recycled Matter 23 | . . . 23 Retrieved Matter 23 | . . . 23 Retrieved Components . | . . . . Parts Scanalyzed . | . . . . Part Schematics Acquired . | . . . . Parts Damaged . | . . . . Bothacking | -11 -10 -9 -8 ------------ Run | Yrd Mat Mat Mat Used RIF Installer . | . . . . Robots Hacked . | . . . . Non-combat . | . . . . Combat . | . . . . Robot Hacks Applied . | . . . . Relay Couplers Released . | . . . . Fabnet Peak Effective % . | . . . . Robots Rewired . | . . . . Allies Hacked . | . . . . Hacks Repelled . | . . . . Allies | -11 -10 -9 -8 -------- Run | Yrd Mat Mat Mat Total Allies . | . . . . Largest Group . | . . . . Highest-Rated Group . | . . . . Highest-Rated Ally . | . . . . Total Orders . | . . . . Ally Attacks . | . . . . Total Damage . | . . . . Kills . | . . . . Allies Corrupted . | . . . . Allies Melted . | . . . . Intel | -11 -10 -9 -8 ------- Run | Yrd Mat Mat Mat Active Infowar (turns) 2599 | . 520 1312 767 Sensors 419 | . . . 419 Seismic 2180 | . 520 1312 348 Robot Analysis Total . | . . . . Derelict Logs Recovered . | . . . . Drone Launches . | . . . . Drone Recoveries . | . . . . Exploration | -11 -10 -9 -8 ------------- Run | Yrd Mat Mat Mat Turns Passed 2894 | 117 593 1312 872 Spaces Moved 1018 | 67 326 396 229 Core 11 | 9 . . 2 Treads 910 | 58 326 396 130 Legs 90 | . . . 90 Wheels 7 | . . . 7 Hover . | . . . . Flight . | . . . . Fastest Speed 50 | 50 160 160 100 Average Speed 169 | 145 160 160 207 Slowest Speed 500 | 160 160 160 500 Overloaded Moves . | . . . . Propulsion Burnouts . | . . . . Robots Hopped . | . . . . Potential Cave-ins . | . . . . Cave-ins Triggered . | . . . . Exploration Rate (%) 27 | 4 51 34 21 Regions Visited 3 Branch Regions . Pre-discovered Areas . | . . . . Known Exits Taken . | . . . . Unknown Exits Taken 3 | 1 1 1 . Scrap Searched . | . . . . Spaces Dug . | . . . . Terrain Destroyed 34 | . . 34 . Melee . | . . . . Projectile . | . . . . AOE 34 | . . 34 . Terrain Rammed . | . . . . Walls Destroyed . | . . . . Machines Disabled . | . . . . Actions | -11 -10 -9 -8 --------- Run | Yrd Mat Mat Mat Total 2041 | 86 368 1015 572 Wait 881 | 2 9 576 294 Move 1015 | 66 325 395 229 Hop . | . . . . Pick Up 32 | 11 9 7 5 Fast Attach 1 | 1 . . . Attach 23 | 5 3 5 10 Detach . | . . . . Swap 7 | 1 3 3 . Drop 7 | . 4 2 1 Fire 75 | . 15 27 33 Melee . | . . . . Ram . | . . . . Kick . | . . . . Crush . | . . . . Escape Stasis . | . . . . Rewire . | . . . . Trap . | . . . . Miscellaneous . | . . . . Route ------- -11/Scrapyard -10/Materials (discovered 2 exits: *Mat / [*Min]) -9/Materials -8/Materials History --------- Turn | Location | Event 16 | -11/Scrapyard | Discovered new exit (range 16) 118 | -11/Scrapyard | Entered Materials 291 | -10/Materials | Discovered new exit (range 9) 307 | -10/Materials | Build established: Mutant 632 | -10/Materials | Discovered new exit (range 14) 711 | -10/Materials | Entered another Materials area 711 | -9/Materials | Evolved 2 slots: Utility x1, Weapon x1 999 | -9/Materials | Build established: Gunner 2010 | -9/Materials | Discovered new exit (range 8) 2023 | -9/Materials | Entered another Materials area 2023 | -8/Materials | Evolved 2 slots: Power x1, Utility x1 2723 | -8/Materials | Build established: Skirmisher 2837 | -8/Materials | Core integrity fell below 50% 2886 | -8/Materials | Core integrity fell below 20% 2895 | -8/Materials | Destroyed by G-47 Trooper with Particle Gun Last Messages --------------- 02842_ Com. Wheel destroyed. 02847_ Lgt. Ion Engine destroyed. 02850_ M-13 Machinist repairs H-61 Shepherd. 02852_ M-13 Machinist repairs H-61 Shepherd Transmission Jammer. 02854_ U-05 Engineer builds a Wall. 02854_ Y-45 Defender destroyed. 02854_ Switching to secondary target: H-61 Shepherd. 02859_ Knocked back. 02863_ Particle Gun destroyed. 02867_ Autogun destroyed. 02867_ Atomic Centrifuge disabled. 02869_ Pulse Rifle destroyed. 02870_ M-13 Machinist repairs H-61 Shepherd Dynamic Insulation System. 02875_ Com. Wheel destroyed. 02886_ Critical hit (Burn: +37). 02887_ M-13 Machinist repairs G-47 Trooper. 02894_ Atomic Centrifuge disabled. Map ----- +----------------------------------------------------+ | | | | | ?????????????????????????????????????????????????? | | ?????????????????????????????????????????????????? | | ?????????????????????????????????????????????????? | | ?????????????????????????????????????????????????? | | ?????????????????????????????????????????????????? | | ?????????????????????????????????????????????????? | | ?????????????????????????????????????????????????? | | ?????????????????????????????????????????????????? | | ?????????????????????????????????????????????????? | | ?????????????????????????????????????????????????? | | ?????????????????????????????????????????????????? | | ?????????????????????????????????????????????????? | | ?????????????????????????????????????????????????? | | ?????????????????????????????????????????????????? | | ?????????????????????????????????????????????????? | | ???????????????????????????????????????? ????????? | | ??????????????????????????????????????? ?????????? | | ?????????????????????????????????????? ??????????? | | ?????????????????????+###????######## ???????????? | | ?????????????????????? ???? ????????????? | | ??????????????????????? ???? ?????????????? | | ???????????????????#####;#####! ??????????????? | | ???????????????????# T #%!%#???????????????? | | ???????????????????# @mg!#=![#???????????????? | | ???????????????????# """g H%#!=%#???????????????? | | ???????????????????# "" """*+%=%#???????????????? | | ???????????????????# """g""" #==%#???????????????? | | ???????????????????# #%=%#???????????????? | | ???????????????????# #=!%#???????????????? | | ???????????????????# =##!##???????????????? | | ???????????????????############%#????????????????? | | ??????????????????????????????#%#????????????????? | | ??????????????????????????????# #????????????????? | | ??????????????????????????????# #????????????????? | | ??????????????????????????????# ##########???????? | | ??????????????????????????????# # #???????? | | ??????????????????????????????# # """ " #???????? | | ????????????????????????????### # """ T #???????? | | ????????????????????????????# # """ " #?####### | | ????????????????????????????# # #?# [ | | ????????????????????????????# # """ !### | | ????????????????????????????# + """ + + | | ????????????????????????????# # """ ### "T" | | ????????????????????????????# # #?# """ | | ????????????????????????????# ###+######?# | | ????????????????????????????# # #???####+## | | ????????????????????????????# # #??????#=* | | ????????????????????????????# # """ #??????#%## | +----------------------------------------------------+ Best States ------------- Heat Dissipation 63 Energy Generation 19 Energy Capacity 185 Matter Stores 300 Matter Capacity 300 Sight Range 16 Robot Scan Range 14 Terrain Scan Density 10 Evasion (%) 50 Recoil Reduction 2 Item Schematics ----------------- None Robot Schematics ------------------ None Fabricated ------------ Nothing Repaired ---------- Nothing Studied --------- None Alien Tech Used ----------------- None Achievements -------------- Bumper Bots Challenges ------------ None Game ------ Seed GodFlakReplica Manual? 0 Play Time 00:20:07 Cumulative 22.4 hours Start 2026.06.27 @ 12:19:24 End 2026.06.27 @ 12:39:22 Sessions 2 Manual Loads 0 Difficulty Rogue Special Mode None Game No. 29 Rogue 1 Adventurer 28 Explorer 0 Win Type - Total 0 Types 0/0/0/0/0/0/0/0/0/0 Lore% 11 Gallery% 19 Achievement% 15 Wizard Run 0 Options --------- Layout 1 ASCII 0 Keyboard 0 Movement Mouse Keybinds 0 Fullscreen 1 Font 24/Smallcaps Map View 50x35 Zoom Use 3% Tactical HUD 1 Map Filters NONE Filters NONE Steam 1 RUN: 7bb0e173-e6e6-4207-af8b-f15386531dff